[Event "ONJK-A 2019"]
[Site "Borne"]
[Date "2019.08.07"]
[Round "5.4"]
[White "Ypma, Jord"]
[Black "Albers, Sasa"]
[Result "1-0"]
[ECO "A56"]
[WhiteElo "1968"]
[BlackElo "1889"]
[Annotator "NA"]
[PlyCount "103"]
[EventDate "2019.08.05"]
[EventType "swiss"]
[EventCountry "NED"]
[SourceTitle "playchess.com"]
[Source "ChessBase"]
[SourceQuality "1"]
[TimeControl "5400+30"]

1. d4 {[%emt 0:00:00]} Nf6 {[%emt 0:00:00]} 2. c4 {[%emt 0:00:00]} c5 {[%emt 0:00:00]} 3. d5 {[%emt 0:00:02]} e5 {[%emt 0:00:00]} 4. Nc3 {[%emt 0:00:28]} d6 {[%emt 0:00:00]} 5. e4 {[%emt 0:01:13]} Be7 {[%emt 0:00:00]} 6. Nf3 {[%emt 0:00:50]} O-O {[%emt 0:00:12]} 7. Be2 {[%emt 0:01:18]} Ne8 {[%emt 0:02:08]} 8. O-O {[%emt 0:08:15]} g6 {[%emt 0:00:56]} 9. Bh6 {[%emt 0:05:21]} Ng7 {[%emt 0:00:43]} 10. Qd2 {[%emt 0:02:26]} f5 {[%emt 0:08:39]} 11. Ng5 {[%emt 0:07:50]} f4 {[%emt 0:02:14]} 12. h4 {[%emt 0:03:22]} Bxg5 {[%emt 0:13:42]} 13. Bxg5 {[%emt 0:05:26]} Qe8 {[%emt 0:04:00]} 14. Rfe1 {[%emt 0:07:17]} a6 {[%emt 0:00:13]} 15. g3 {[%emt 0:04:44]} f3 {[%emt 0:06:44]} 16. Bf1 {[%emt 0:00:40]} Nh5 {[%emt 0:00:42]} 17. Be3 {[%emt 0:03:32]} Nd7 {[%emt 0:00:37]} 18. a3 {[%emt 0:02:25]} Ndf6 {[%emt 0:00:56]} 19. b4 {[%emt 0:01:38]} b6 {[%emt 0:03:25]} 20. Rab1 {[%emt 0:03:12]} Ng4 {[%emt 0:00:08]} 21. Rec1 {[%emt 0:06:14]} Qf7 {[%emt 0:02:38]} 22. Nd1 {[%emt 0:04:22]} Nxe3 {[%emt 0:26:00]} 23. Qxe3 {[%emt 0:04:10]} Qe7 {[%emt 0:12:54]} 24. Qg5 {[%emt 0:06:41]} Qd7 {[%emt 0:01:04]} 25. bxc5 {[%emt 0:04:25]} bxc5 {[%emt 0:00:03]} 26. Rb6 {[%emt 0:02:03]} Kg7 {[%emt 0:01:16]} 27. Rcb1 {[%emt 0:01:54]} h6 {[%emt 0:00:20]} 28. Qe3 {[%emt 0:01:12]} Nf4 {[%emt 0:01:52]} 29. Kh2 {[%emt 0:03:28]} g5 {[%emt 0:07:40]} 30. Rc6 {[%emt 0:03:18]} Ng2 {[%emt 0:04:19]} 31. Bxg2 {[%emt 0:00:49]} fxg2 {[%emt 0:00:01]} 32. Kxg2 {[%emt 0:00:15]} Qh3+ {[%emt 0:00:26]} 33. Kg1 {[%emt 0:00:05]} Bg4 {[%emt 0:02:04]} 34. Rb7+ {[%emt 0:02:22]} Rf7 {[%emt 0:00:01]} 35. Rxf7+ {[%emt 0:01:54]} Kxf7 {[%emt 0:00:01]} 36. Rxd6 {[%emt 0:01:09]} Bxd1 {[%emt 0:00:50]} 37. Qxc5 {[%emt 0:00:11]} Qc8 {[%emt 0:00:58]} 38. Rc6 {[%emt 0:00:05]} Qf8 {[%emt 0:00:32]} 39. Rc7+ {[%emt 0:00:17]} Kg8 {[%emt 0:00:07]} 40. d6 {[%emt 0:00:47]} Bh5 {[%emt 0:00:49]} 41. Qd5+ {[%emt 0:00:11]} Bf7 {[%emt 0:00:06]} 42. Rxf7 {[%emt 0:00:06]} Qxf7 {[%emt 0:00:12]} 43. Qxa8+ {[%emt 0:00:05]} Kg7 {[%emt 0:00:07]} 44. hxg5 {[%emt 0:00:44]} hxg5 {[%emt 0:00:30]} 45. Qd5 {[%emt 0:00:14]} Qd7 {[%emt 0:00:28]} 46. Qxe5+ {[%emt 0:00:05]} Kg8 {[%emt 0:00:21]} 47. Qxg5+ {[%emt 0:00:05]} Kh8 {[%emt 0:00:03]} 48. Qe7 {[%emt 0:00:42]} Qa4 {[%emt 0:00:01]} 49. d7 {[%emt 0:00:31]} Qd1+ {[%emt 0:00:05]} 50. Kg2 {[%emt 0:00:04]} Qh1+ {[%emt 0:00:14]} 51. Kxh1 {[%emt 0:00:07]} a5 {[%emt 0:00:06]} 52. d8=R# {[%emt 0:00:06]} 1-0

[Event "ONJK-A 2019"]
[Site "Borne"]
[Date "2019.08.07"]
[Round "5.5"]
[White "Emans, Job"]
[Black "Van Malder, Dries"]
[Result "0-1"]
[ECO "E11"]
[WhiteElo "1989"]
[BlackElo "2178"]
[Annotator "NA"]
[PlyCount "74"]
[EventDate "2019.08.05"]
[EventType "swiss"]
[EventCountry "NED"]
[SourceTitle "playchess.com"]
[Source "ChessBase"]
[SourceQuality "1"]
[TimeControl "5400+30"]

1. d4 {[%emt 0:00:00]} Nf6 {[%emt 0:00:00]} 2. c4 {[%emt 0:00:00]} e6 {[%emt 0:00:00]} 3. Nf3 {[%emt 0:00:00]} Bb4+ {[%emt 0:00:00]} 4. Bd2 {[%emt 0:00:00]} Qe7 {[%emt 0:00:00]} 5. g3 {[%emt 0:02:34]} Bxd2+ {[%emt 0:00:00]} 6. Nbxd2 {[%emt 0:00:07]} d6 {[%emt 0:00:20]} 7. Bg2 {[%emt 0:00:49]} e5 {[%emt 0:00:16]} 8. dxe5 {[%emt 0:18:05]} dxe5 {[%emt 0:00:30]} 9. e3 {[%emt 0:00:12]} O-O {[%emt 0:00:47]} 10. O-O {[%emt 0:00:18]} a5 {[%emt 0:06:18]} 11. Qc2 {[%emt 0:01:54]} Nc6 {[%emt 0:02:41]} 12. a3 {[%emt 0:02:26]} Bg4 {[%emt 0:06:08]} 13. Ne4 {[%emt 0:07:33]} Rad8 {[%emt 0:14:04]} 14. Nc3 {[%emt 0:02:58]} Rfe8 {[%emt 0:05:56]} 15. Ng5 {[%emt 0:06:59]} g6 {[%emt 0:22:46]} 16. Nge4 {[%emt 0:10:38]} Nxe4 {[%emt 0:15:46]} 17. Bxe4 {[%emt 0:01:03]} f5 {[%emt 0:02:53]} 18. Bd5+ {[%emt 0:10:51]} Kg7 {[%emt 0:00:33]} 19. f3 {[%emt 0:01:13]} Bh3 {[%emt 0:00:22]} 20. Rfe1 {[%emt 0:00:22]} Nb8 {[%emt 0:02:16]} 21. c5 {[%emt 0:09:24]} Qxc5 {[%emt 0:02:16]} 22. Ba2 {[%emt 0:00:10]} Rd7 {[%emt 0:07:43]} 23. b4 {[%emt 0:06:00]} axb4 {[%emt 0:03:08]} 24. axb4 {[%emt 0:00:04]} Qxb4 {[%emt 0:00:16]} 25. Nd5 {[%emt 0:00:20]} Qd6 {[%emt 0:01:09]} 26. Red1 {[%emt 0:00:15]} Red8 {[%emt 0:00:41]} 27. f4 {[%emt 0:08:16]} c6 {[%emt 0:00:47]} 28. Nc3 {[%emt 0:00:05]} Qc5 {[%emt 0:00:10]} 29. Rxd7+ {[%emt 0:01:07]} Rxd7 {[%emt 0:00:09]} 30. Re1 {[%emt 0:02:58]} Na6 {[%emt 0:02:07]} 31. Qb3 {[%emt 0:01:09]} Nb4 {[%emt 0:01:02]} 32. Na4 {[%emt 0:00:51]} Qc2 {[%emt 0:00:47]} 33. Qxc2 {[%emt 0:02:10]} Nxc2 {[%emt 0:00:06]} 34. Rc1 {[%emt 0:00:02]} Rd2 {[%emt 0:00:52]} 35. fxe5 {[%emt 0:00:51]} Nxe3 {[%emt 0:00:14]} 36. Bc4 {[%emt 0:01:58]} Rg2+ {[%emt 0:02:04]} 37. Kh1 {[%emt 0:00:10]} Ng4 {[%emt 0:00:04]} 0-1

[Event "ONJK-A 2019"]
[Site "Borne"]
[Date "2019.08.07"]
[Round "5.6"]
[White "Hempler, Poul"]
[Black "Butzen, Robin"]
[Result "1-0"]
[ECO "A40"]
[WhiteElo "1856"]
[BlackElo "1967"]
[Annotator "NA"]
[PlyCount "89"]
[EventDate "2019.08.05"]
[EventType "swiss"]
[EventCountry "NED"]
[SourceTitle "playchess.com"]
[Source "ChessBase"]
[SourceQuality "1"]
[TimeControl "5400+30"]

1. e4 {[%emt 0:00:00]} b6 {[%emt 0:00:00]} 2. c4 {[%emt 0:00:00]} Bb7 {[%emt 0:00:00]} 3. Nc3 {[%emt 0:00:00]} e6 {[%emt 0:00:00]} 4. d4 {[%emt 0:00:00]} Bb4 {[%emt 0:00:00]} 5. f3 {[%emt 0:00:00]} c5 {[%emt 0:09:34]} 6. a3 {[%emt 0:01:20]} Bxc3+ {[%emt 0:02:34]} 7. bxc3 {[%emt 0:00:08]} Nc6 {[%emt 0:00:40]} 8. d5 {[%emt 0:00:57]} Na5 {[%emt 0:00:06]} 9. Be3 {[%emt 0:04:41]} d6 {[%emt 0:08:18]} 10. Bd3 {[%emt 0:02:58]} Nf6 {[%emt 0:05:21]} 11. Qe2 {[%emt 0:06:02]} O-O {[%emt 0:02:25]} 12. Nh3 {[%emt 0:00:57]} Re8 {[%emt 0:15:46]} 13. O-O {[%emt 0:07:34]} Qe7 {[%emt 0:07:27]} 14. Rfe1 {[%emt 0:03:14]} Ba6 {[%emt 0:04:31]} 15. a4 {[%emt 0:02:12]} Nd7 {[%emt 0:04:54]} 16. Bf4 {[%emt 0:03:59]} Nf8 {[%emt 0:04:10]} 17. Bg3 {[%emt 0:04:27]} Ng6 {[%emt 0:00:28]} 18. Nf2 {[%emt 0:01:36]} Rad8 {[%emt 0:02:49]} 19. Nd1 {[%emt 0:04:40]} Qg5 {[%emt 0:00:05]} 20. Qe3 {[%emt 0:05:29]} Qxe3+ {[%emt 0:01:17]} 21. Nxe3 {[%emt 0:00:11]} exd5 {[%emt 0:06:06]} 22. exd5 {[%emt 0:00:10]} Ne5 {[%emt 0:00:45]} 23. Bxe5 {[%emt 0:01:00]} Rxe5 {[%emt 0:00:04]} 24. Re2 {[%emt 0:00:39]} Rde8 {[%emt 0:02:33]} 25. Rae1 {[%emt 0:00:07]} g6 {[%emt 0:00:09]} 26. Kf2 {[%emt 0:01:30]} f5 {[%emt 0:00:27]} 27. f4 {[%emt 0:00:44]} R5e7 {[%emt 0:00:03]} 28. Kf3 {[%emt 0:01:05]} Kf7 {[%emt 0:00:18]} 29. h4 {[%emt 0:04:35]} h5 {[%emt 0:05:59]} 30. Kg3 {[%emt 0:02:45]} Kf8 {[%emt 0:00:34]} 31. Kf3 {[%emt 0:00:10]} Rd8 {[%emt 0:02:50]} 32. Kg3 {[%emt 0:00:26]} Rdd7 {[%emt 0:00:57]} 33. Kf3 {[%emt 0:00:19]} Ke8 {[%emt 0:01:36]} 34. Kg3 {[%emt 0:00:37]} Kd8 {[%emt 0:00:06]} 35. Kf3 {[%emt 0:01:01]} Kc7 {[%emt 0:00:54]} 36. Kg3 {[%emt 0:01:02]} Rd8 {[%emt 0:00:11]} 37. Kf3 {[%emt 0:00:40]} Rde8 {[%emt 0:00:05]} 38. Kg3 {[%emt 0:00:23]} Bc8 {[%emt 0:01:10]} 39. Kf3 {[%emt 0:00:30]} Kb7 {[%emt 0:00:51]} 40. Nxf5 {[%emt 0:07:05]} Rxe2 {[%emt 0:12:42]} 41. Nxd6+ {[%emt 0:00:09]} Kb8 {[%emt 0:01:14]} 42. Bxe2 {[%emt 0:02:37]} Bg4+ {[%emt 0:00:11]} 43. Kf2 {[%emt 0:00:14]} Rf8 {[%emt 0:00:38]} 44. Bxg4 {[%emt 0:00:23]} hxg4 {[%emt 0:00:08]} 45. Kg3 {[%emt 0:02:04]} 1-0

[Event "ONJK-A 2019"]
[Site "Borne"]
[Date "2019.08.07"]
[Round "5.7"]
[White "Merkon, Oseb"]
[Black "Godde, Matthias"]
[Result "0-1"]
[ECO "A36"]
[WhiteElo "2013"]
[BlackElo "1989"]
[Annotator "NA"]
[PlyCount "86"]
[EventDate "2019.08.05"]
[EventType "swiss"]
[EventCountry "NED"]
[SourceTitle "playchess.com"]
[Source "ChessBase"]
[SourceQuality "1"]
[TimeControl "5400+30"]

1. c4 {[%emt 0:00:00]} Nf6 {[%emt 0:00:00]} 2. Nc3 {[%emt 0:00:00]} g6 {[%emt 0:00:05]} 3. g3 {[%emt 0:00:00]} c5 {[%emt 0:00:18]} 4. Bg2 {[%emt 0:00:00]} Bg7 {[%emt 0:00:08]} 5. e4 {[%emt 0:00:00]} d6 {[%emt 0:00:08]} 6. Nge2 {[%emt 0:00:00]} O-O {[%emt 0:00:27]} 7. O-O {[%emt 0:00:00]} Nc6 {[%emt 0:00:04]} 8. d3 {[%emt 0:00:03]} Ne8 {[%emt 0:00:21]} 9. Be3 {[%emt 0:02:26]} Rb8 {[%emt 0:01:04]} 10. d4 {[%emt 0:13:59]} cxd4 {[%emt 0:00:36]} 11. Nxd4 {[%emt 0:00:54]} Nxd4 {[%emt 0:05:21]} 12. Bxd4 {[%emt 0:00:07]} Bxd4 {[%emt 0:03:11]} 13. Qxd4 {[%emt 0:00:22]} a6 {[%emt 0:00:21]} 14. f4 {[%emt 0:13:07]} Ng7 {[%emt 0:01:23]} 15. Rad1 {[%emt 0:04:21]} Be6 {[%emt 0:07:07]} 16. Nd5 {[%emt 0:10:30]} Re8 {[%emt 0:06:03]} 17. h3 {[%emt 0:04:03]} Qa5 {[%emt 0:04:02]} 18. b4 {[%emt 0:15:42]} Qxa2 {[%emt 0:04:24]} 19. Ra1 {[%emt 0:14:23]} Qb3 {[%emt 0:06:46]} 20. Rf3 {[%emt 0:00:05]} Qc2 {[%emt 0:00:11]} 21. Ne3 {[%emt 0:00:30]} Qb3 {[%emt 0:03:21]} 22. f5 {[%emt 0:00:25]} Bd7 {[%emt 0:07:35]} 23. Nd5 {[%emt 0:01:01]} Qc2 {[%emt 0:00:59]} 24. Rf2 {[%emt 0:06:29]} Qb3 {[%emt 0:00:55]} 25. Kh2 {[%emt 0:02:17]} Rbc8 {[%emt 0:17:53]} 26. Bf1 {[%emt 0:01:54]} gxf5 {[%emt 0:03:32]} 27. Rb2 {[%emt 0:00:12]} Qf3 {[%emt 0:03:20]} 28. Bg2 {[%emt 0:00:13]} Qh5 {[%emt 0:01:24]} 29. Rf1 {[%emt 0:01:08]} fxe4 {[%emt 0:04:15]} 30. Rbf2 {[%emt 0:02:31]} f5 {[%emt 0:08:14]} 31. g4 {[%emt 0:00:44]} fxg4 {[%emt 0:01:26]} 32. Qxe4 {[%emt 0:01:18]} gxh3 {[%emt 0:04:10]} 33. Nxe7+ {[%emt 0:01:47]} Rxe7 {[%emt 0:00:46]} 34. Qxe7 {[%emt 0:02:21]} hxg2+ {[%emt 0:00:21]} 35. Kxg2 {[%emt 0:00:01]} Bh3+ {[%emt 0:00:36]} 36. Kg1 {[%emt 0:00:39]} Bxf1 {[%emt 0:00:16]} 37. Kxf1 {[%emt 0:00:13]} Qh1+ {[%emt 0:00:58]} 38. Ke2 {[%emt 0:00:03]} Re8 {[%emt 0:00:11]} 39. Rf8+ {[%emt 0:00:29]} Rxf8 {[%emt 0:00:02]} 40. Qxd6 {[%emt 0:00:10]} Qe4+ {[%emt 0:00:28]} 41. Kd2 {[%emt 0:00:11]} Rf2+ {[%emt 0:00:11]} 42. Kc3 {[%emt 0:00:07]} Rc2+ {[%emt 0:00:27]} 43. Kb3 {[%emt 0:00:03]} Qxc4+ {[%emt 0:00:05]} 0-1

[Event "ONJK-A 2019"]
[Site "Borne"]
[Date "2019.08.07"]
[Round "5.8"]
[White "Vitharana, Annelies"]
[Black "Baselmans, Sam"]
[Result "0-1"]
[ECO "C45"]
[WhiteElo "1768"]
[BlackElo "2064"]
[Annotator "NA"]
[PlyCount "50"]
[EventDate "2019.08.05"]
[EventType "swiss"]
[EventCountry "NED"]
[SourceTitle "playchess.com"]
[Source "ChessBase"]
[SourceQuality "1"]
[TimeControl "5400+30"]

1. e4 {[%emt 0:00:00]} e5 {[%emt 0:00:00]} 2. Nf3 {[%emt 0:00:00]} Nc6 {[%emt 0:00:00]} 3. d4 {[%emt 0:00:00]} exd4 {[%emt 0:00:00]} 4. Nxd4 {[%emt 0:00:01]} Bc5 {[%emt 0:00:00]} 5. Be3 {[%emt 0:00:10]} Qf6 {[%emt 0:00:00]} 6. c3 {[%emt 0:00:09]} Nge7 {[%emt 0:00:00]} 7. Bc4 {[%emt 0:00:12]} Ne5 {[%emt 0:00:07]} 8. Be2 {[%emt 0:00:11]} Qg6 {[%emt 0:00:07]} 9. O-O {[%emt 0:02:12]} d6 {[%emt 0:00:06]} 10. Bh5 {[%emt 0:14:54]} Qxe4 {[%emt 0:06:48]} 11. Nd2 {[%emt 0:03:28]} Qh4 {[%emt 0:01:02]} 12. Nb5 {[%emt 0:06:03]} O-O {[%emt 0:11:26]} 13. Bxc5 {[%emt 0:08:03]} dxc5 {[%emt 0:01:06]} 14. h3 {[%emt 0:04:12]} c6 {[%emt 0:13:36]} 15. Nd6 {[%emt 0:02:41]} Nd5 {[%emt 0:03:18]} 16. Qe2 {[%emt 0:07:08]} f6 {[%emt 0:01:41]} 17. Nxc8 {[%emt 0:05:13]} Raxc8 {[%emt 0:01:05]} 18. Qd1 {[%emt 0:01:53]} Rcd8 {[%emt 0:03:39]} 19. Be2 {[%emt 0:04:11]} Nf4 {[%emt 0:01:56]} 20. Re1 {[%emt 0:10:16]} Qg5 {[%emt 0:02:13]} 21. g3 {[%emt 0:04:53]} Rxd2 {[%emt 0:00:16]} 22. Qb3+ {[%emt 0:02:37]} Kh8 {[%emt 0:00:33]} 23. Bg4 {[%emt 0:03:07]} Nxg4 {[%emt 0:05:22]} 24. hxg4 {[%emt 0:01:31]} Nh3+ {[%emt 0:00:54]} 25. Kh1 {[%emt 0:01:05]} Nxf2+ {[%emt 0:00:30]} 0-1

[Event "ONJK-A 2019"]
[Site "Borne"]
[Date "2019.08.07"]
[Round "5.9"]
[White "Hofstra, Tijmen"]
[Black "Boudry, William"]
[Result "0-1"]
[ECO "B13"]
[WhiteElo "1732"]
[BlackElo "2033"]
[Annotator "NA"]
[PlyCount "64"]
[EventDate "2019.08.05"]
[EventType "swiss"]
[EventCountry "NED"]
[SourceTitle "playchess.com"]
[Source "ChessBase"]
[SourceQuality "1"]
[TimeControl "5400+30"]

1. e4 {[%emt 0:00:03]} d6 {[%emt 0:00:00]} 2. Nf3 {[%emt 0:00:34]} Nf6 {[%emt 0:00:23]} 3. Nc3 {[%emt 0:00:15]} c6 {[%emt 0:00:20]} 4. d4 {[%emt 0:00:12]} Bg4 {[%emt 0:00:31]} 5. Bc4 {[%emt 0:00:15]} d5 {[%emt 0:00:37]} 6. exd5 {[%emt 0:00:06]} cxd5 {[%emt 0:00:06]} 7. Bb5+ {[%emt 0:00:05]} Nc6 {[%emt 0:00:05]} 8. h3 {[%emt 0:00:08]} Bh5 {[%emt 0:01:51]} 9. g4 {[%emt 0:00:12]} Bg6 {[%emt 0:00:07]} 10. Ne5 {[%emt 0:00:04]} Rc8 {[%emt 0:04:37]} 11. Bf4 {[%emt 0:00:05]} Qb6 {[%emt 0:01:10]} 12. a4 {[%emt 0:01:08]} a6 {[%emt 0:04:13]} 13. a5 {[%emt 0:00:27]} Qa7 {[%emt 0:00:23]} 14. Ba4 {[%emt 0:00:16]} e6 {[%emt 0:00:27]} 15. h4 {[%emt 0:03:16]} h5 {[%emt 0:02:41]} 16. g5 {[%emt 0:00:05]} Nd7 {[%emt 0:00:42]} 17. Nxg6 {[%emt 0:00:32]} fxg6 {[%emt 0:00:05]} 18. Be3 {[%emt 0:00:20]} Bb4 {[%emt 0:01:03]} 19. Qd3 {[%emt 0:00:09]} Kf7 {[%emt 0:01:34]} 20. Rh3 {[%emt 0:00:10]} Rhf8 {[%emt 0:00:23]} 21. O-O-O {[%emt 0:02:09]} Bxc3 {[%emt 0:02:21]} 22. bxc3 {[%emt 0:00:10]} Qb8 {[%emt 0:00:46]} 23. Rg1 {[%emt 0:00:55]} Qd6 {[%emt 0:00:33]} 24. Bxc6 {[%emt 0:00:34]} Rxc6 {[%emt 0:00:55]} 25. f4 {[%emt 0:00:46]} Qa3+ {[%emt 0:00:24]} 26. Kd2 {[%emt 0:00:05]} Rfc8 {[%emt 0:00:37]} 27. c4 {[%emt 0:00:22]} Qxa5+ {[%emt 0:00:30]} 28. c3 {[%emt 0:00:21]} Qa2+ {[%emt 0:00:53]} 29. Qc2 {[%emt 0:00:17]} Qxc2+ {[%emt 0:00:15]} 30. Kxc2 {[%emt 0:00:04]} Rxc4 {[%emt 0:00:07]} 31. Bf2 {[%emt 0:00:08]} b5 {[%emt 0:01:33]} 32. Ra1 {[%emt 0:00:12]} R8c6 {[%emt 0:00:47]} 0-1

[Event "ONJK-A 2019"]
[Site "Borne"]
[Date "2019.08.07"]
[Round "5.10"]
[White "Klaren, Duncan"]
[Black "Vleming, Stefan"]
[Result "0-1"]
[ECO "C45"]
[WhiteElo "1896"]
[BlackElo "1760"]
[Annotator "NA"]
[PlyCount "62"]
[EventDate "2019.08.05"]
[EventType "swiss"]
[EventCountry "NED"]
[SourceTitle "playchess.com"]
[Source "ChessBase"]
[SourceQuality "1"]
[TimeControl "5400+30"]

1. e4 {[%emt 0:00:00]} e5 {[%emt 0:00:00]} 2. Nf3 {[%emt 0:00:00]} Nc6 {[%emt 0:00:00]} 3. d4 {[%emt 0:00:00]} exd4 {[%emt 0:00:00]} 4. Nxd4 {[%emt 0:00:00]} Nf6 {[%emt 0:00:36]} 5. Nxc6 {[%emt 0:00:00]} bxc6 {[%emt 0:00:12]} 6. e5 {[%emt 0:00:00]} Qe7 {[%emt 0:03:28]} 7. Qe2 {[%emt 0:00:01]} Nd5 {[%emt 0:00:18]} 8. c4 {[%emt 0:00:06]} Nb4 {[%emt 0:02:53]} 9. Nc3 {[%emt 0:04:49]} a5 {[%emt 0:05:31]} 10. g3 {[%emt 0:02:03]} g6 {[%emt 0:02:29]} 11. Bg2 {[%emt 0:02:14]} Bg7 {[%emt 0:01:31]} 12. a3 {[%emt 0:05:24]} Na6 {[%emt 0:01:36]} 13. O-O {[%emt 0:00:10]} O-O {[%emt 0:02:48]} 14. f4 {[%emt 0:03:13]} Bb7 {[%emt 0:06:51]} 15. Ne4 {[%emt 0:12:22]} Nc5 {[%emt 0:14:58]} 16. Bd2 {[%emt 0:15:08]} Nxe4 {[%emt 0:08:49]} 17. Qxe4 {[%emt 0:00:09]} Rfe8 {[%emt 0:02:19]} 18. Rae1 {[%emt 0:01:40]} d5 {[%emt 0:13:29]} 19. cxd5 {[%emt 0:05:46]} cxd5 {[%emt 0:01:11]} 20. Qc2 {[%emt 0:00:48]} c5 {[%emt 0:03:46]} 21. Qb3 {[%emt 0:06:42]} a4 {[%emt 0:04:41]} 22. Qf3 {[%emt 0:01:40]} Qd7 {[%emt 0:08:26]} 23. Bc3 {[%emt 0:01:46]} Rab8 {[%emt 0:01:54]} 24. Qd3 {[%emt 0:01:03]} d4 {[%emt 0:01:57]} 25. Re2 {[%emt 0:06:48]} Qe6 {[%emt 0:02:11]} 26. Bxb7 {[%emt 0:01:17]} dxc3 {[%emt 0:07:32]} 27. Bd5 {[%emt 0:00:24]} Red8 {[%emt 0:00:09]} 28. Rd1 {[%emt 0:00:34]} cxb2 {[%emt 0:00:21]} 29. Red2 {[%emt 0:01:31]} Rxd5 {[%emt 0:00:32]} 30. Qxd5 {[%emt 0:04:05]} Qxd5 {[%emt 0:00:07]} 31. Rxd5 {[%emt 0:00:09]} b1=Q {[%emt 0:00:12]} 0-1

[Event "ONJK-A 2019"]
[Site "Borne"]
[Date "2019.08.07"]
[Round "5.11"]
[White "Akulova, Alicia"]
[Black "Van Roon, Sjoerd"]
[Result "1-0"]
[ECO "B33"]
[WhiteElo "1702"]
[BlackElo "2072"]
[Annotator "NA"]
[PlyCount "117"]
[EventDate "2019.08.05"]
[EventType "swiss"]
[EventCountry "NED"]
[SourceTitle "playchess.com"]
[Source "ChessBase"]
[SourceQuality "1"]
[TimeControl "5400+30"]

1. e4 {[%emt 0:00:00]} c5 {[%emt 0:00:00]} 2. Nf3 {[%emt 0:00:13]} Nc6 {[%emt 0:00:00]} 3. d4 {[%emt 0:00:07]} cxd4 {[%emt 0:00:00]} 4. Nxd4 {[%emt 0:00:08]} Nf6 {[%emt 0:00:03]} 5. Nc3 {[%emt 0:00:18]} e5 {[%emt 0:00:07]} 6. Ndb5 {[%emt 0:00:23]} d6 {[%emt 0:00:05]} 7. Nd5 {[%emt 0:01:41]} Nxd5 {[%emt 0:00:49]} 8. exd5 {[%emt 0:00:59]} Ne7 {[%emt 0:00:16]} 9. c4 {[%emt 0:02:32]} a6 {[%emt 0:02:19]} 10. Qa4 {[%emt 0:02:36]} axb5 {[%emt 0:01:50]} 11. Qxa8 {[%emt 0:00:12]} bxc4 {[%emt 0:01:29]} 12. Bxc4 {[%emt 0:00:52]} f5 {[%emt 0:00:57]} 13. Bd2 {[%emt 0:15:20]} f4 {[%emt 0:14:10]} 14. Bb5+ {[%emt 0:09:39]} Kf7 {[%emt 0:00:35]} 15. Rc1 {[%emt 0:01:46]} Qb6 {[%emt 0:10:21]} 16. a4 {[%emt 0:09:20]} Qd8 {[%emt 0:16:18]} 17. Ba5 {[%emt 0:10:27]} b6 {[%emt 0:00:04]} 18. Ba6 {[%emt 0:05:08]} bxa5 {[%emt 0:00:12]} 19. Bxc8 {[%emt 0:00:21]} Qb6 {[%emt 0:01:21]} 20. Be6+ {[%emt 0:03:18]} Kf6 {[%emt 0:00:14]} 21. O-O {[%emt 0:07:54]} Ng6 {[%emt 0:08:45]} 22. Rc6 {[%emt 0:02:52]} Qb4 {[%emt 0:01:06]} 23. Qe8 {[%emt 0:01:42]} Kg5 {[%emt 0:01:00]} 24. Qf7 {[%emt 0:02:01]} Kh6 {[%emt 0:02:31]} 25. Rc3 {[%emt 0:09:01]} Be7 {[%emt 0:01:59]} 26. Rh3+ {[%emt 0:01:10]} Bh4 {[%emt 0:00:08]} 27. g3 {[%emt 0:01:00]} Rf8 {[%emt 0:04:51]} 28. Qa7 {[%emt 0:04:23]} Rf6 {[%emt 0:08:45]} 29. gxh4 {[%emt 0:01:06]} Nf8 {[%emt 0:01:05]} 30. h5 {[%emt 0:06:44]} Nxe6 {[%emt 0:00:57]} 31. dxe6 {[%emt 0:00:07]} Qc4 {[%emt 0:00:35]} 32. e7 {[%emt 0:01:11]} Qe6 {[%emt 0:00:47]} 33. e8=Q {[%emt 0:01:19]} Qxe8 {[%emt 0:02:03]} 34. Qb7 {[%emt 0:00:31]} e4 {[%emt 0:03:19]} 35. Qd5 {[%emt 0:00:09]} Re6 {[%emt 0:02:58]} 36. Kh1 {[%emt 0:00:47]} Qe7 {[%emt 0:00:32]} 37. Rg1 {[%emt 0:00:25]} Re5 {[%emt 0:00:14]} 38. Qd2 {[%emt 0:00:39]} Rf5 {[%emt 0:01:33]} 39. Qd4 {[%emt 0:00:25]} d5 {[%emt 0:01:29]} 40. Rc1 {[%emt 0:00:27]} Qe6 {[%emt 0:01:04]} 41. Rb3 {[%emt 0:00:22]} Rf6 {[%emt 0:00:33]} 42. Rd1 {[%emt 0:00:50]} Qg4 {[%emt 0:03:12]} 43. Qxd5 {[%emt 0:00:54]} Rf5 {[%emt 0:01:25]} 44. Qe6+ {[%emt 0:00:05]} g6 {[%emt 0:00:44]} 45. Rg1 {[%emt 0:00:45]} Qxh5 {[%emt 0:01:01]} 46. Qxe4 {[%emt 0:00:04]} Qh4 {[%emt 0:01:05]} 47. Qf3 {[%emt 0:00:29]} Rh5 {[%emt 0:00:38]} 48. h3 {[%emt 0:00:30]} Qf6 {[%emt 0:00:23]} 49. Rg4 {[%emt 0:00:34]} Rf5 {[%emt 0:00:46]} 50. Rb5 {[%emt 0:00:21]} g5 {[%emt 0:00:30]} 51. Rxf5 {[%emt 0:00:17]} Qxf5 {[%emt 0:00:07]} 52. Qc6+ {[%emt 0:00:19]} Kh5 {[%emt 0:00:10]} 53. Qe8+ {[%emt 0:00:10]} Kh6 {[%emt 0:00:08]} 54. Kh2 {[%emt 0:00:58]} f3 {[%emt 0:02:39]} 55. Qc6+ Kh5 {[%emt 0:00:08]} 56. Rg3 {[%emt 0:00:12]} Qe5 {[%emt 0:00:42]} 57. Qxf3+ {[%emt 0:00:31]} Kh6 58. h4 {[%emt 0:00:45]} Kg7 {[%emt 0:00:39]} 59. Qc3 {[%emt 0:00:25]} 1-0